fUST/lending_fUST_20250901
["ID","MTS","AMOUNT","RATE_DAILY","PERIOD"]
[382644310,1756692641883,-480.0,0.00016041,2]
[382644312,1756692641892,-544.28,0.00016041,2]
[382644314,1756692641901,-480.0,0.00016041,2]
[382644316,1756692641910,-480.0,0.00016041,2]
[382644318,1756692641923,-480.0,0.00016041,2]
[382644320,1756692641932,-881.3,0.00016041,2]
[382644322,1756692641942,-480.0,0.00016041,2]
[382644324,1756692641951,-1570.06,0.00016041,2]
[382644326,1756692641961,-480.0,0.00016041,2]
[382644328,1756692641970,-754.55,0.00016041,2]
[382644330,1756692641979,-792.77,0.00016041,2]
[382644332,1756692641989,-480.0,0.00016041,2]
[382644334,1756692641999,-480.0,0.00016041,2]
[382644336,1756692642010,-536.47206465,0.00016041,2]
[382644338,1756692642020,-480.0,0.00016041,2]
[382644340,1756692642029,-480.0,0.00016041,2]
[382644342,1756692642038,-480.0,0.00016041,2]
[382644344,1756692642047,-1062.36,0.00016041,2]
[382644346,1756692642057,-480.0,0.00016044,2]
[382644348,1756692642066,-480.0,0.00016044,2]
[382644350,1756692642076,-480.0,0.00016044,2]
[382644352,1756692642086,-480.0,0.00016044,2]
[382644354,1756692642096,-480.0,0.00016044,2]
[382644356,1756692642105,-480.0,0.00016044,2]
[382644358,1756692642115,-480.0,0.00016045,2]
[382644360,1756692642124,-480.0,0.00016045,2]
[382644362,1756692642135,-480.0,0.00016045,2]
[382644364,1756692642144,-801.43,0.00016045,2]
[382644366,1756692642154,-480.0,0.00016045,2]
[382644368,1756692642164,-480.0,0.00016045,2]
[382644370,1756692642174,-480.0,0.00016045,2]
[382644372,1756692642183,-480.0,0.00016045,2]
[382644374,1756692642192,-480.0,0.00016045,2]
[382644376,1756692642204,-495.14,0.00016045,2]
[382644378,1756692642214,-480.0,0.00016045,2]
[382644380,1756692642224,-487.61676135,0.00016045,2]
[382644382,1756692642233,-480.0,0.00016045,2]
[382644384,1756692642243,-574.88,0.00016045,2]
[382644386,1756692642253,-480.0,0.00016045,2]
[382644389,1756692642263,-830.69,0.00016045,2]
[382644390,1756692642279,-480.0,0.00016045,2]
[382644392,1756692642292,-272.52744143,0.00016045,2]
[382644395,1756692642302,-480.0,0.00016045,2]
[382644396,1756692642313,-871.21,0.00016045,2]
[382644398,1756692642323,-480.0,0.00016045,2]
[382644400,1756692642333,-480.0,0.00016045,2]
[382644402,1756692642343,-388.2519234,0.00016045,2]
[382644405,1756692642354,-480.0,0.00016045,2]
[382644407,1756692642364,-480.0,0.00016045,2]
[382644409,1756692642373,-480.0,0.00016045,2]
[382644411,1756692642388,-555.15,0.00016045,2]
[382644413,1756692642400,-1140.65,0.00016045,2]
[382644415,1756692642409,-670.22,0.00016045,2]
[382644417,1756692642419,-480.0,0.00016045,2]
[382644419,1756692642428,-480.0,0.00016045,2]
[382644421,1756692642438,-480.0,0.00016045,2]
[382644423,1756692642448,-480.0,0.00016045,2]
[382644425,1756692642457,-480.0,0.00016045,2]
[382644427,1756692642468,-480.0,0.00016045,2]
[382644429,1756692642478,-480.0,0.00016045,2]
[382644431,1756692642487,-480.0,0.00016045,2]
[382644433,1756692642498,-493.34,0.00016045,2]
[382644435,1756692642508,-601.75679412,0.00016045,2]
[382644437,1756692642518,-480.0,0.00016045,2]
[382644439,1756692642528,-480.0,0.00016045,2]
[382644441,1756692642537,-480.0,0.00016045,2]
[382644443,1756692642547,-489.14134259,0.00016045,2]
[382644445,1756692642557,-657.94,0.00016045,2]
[382644447,1756692642567,-1001.46641687,0.00016048,2]
[382644449,1756692642576,-495.51,0.00016049,2]
[382644451,1756692642585,-480.0,0.00016049,2]
[382644453,1756692642595,-486.89,0.00016049,2]
[382644455,1756692642604,-790.0,0.00016071,2]
[382644457,1756692642615,-301.75,0.000161,2]
[382644459,1756692642624,-151.0,0.000161,2]
[382644461,1756692642636,-402.83718299,0.00016144,2]
[382644463,1756692642646,-151.0,0.000162,2]
[382644465,1756692642655,-151.0,0.000163,2]
[382644467,1756692642665,-704.0,0.00016303,2]
[382644469,1756692642677,-480.0,0.00016308,2]
[382644471,1756692642689,-480.0,0.00016308,2]
[382644473,1756692642698,-982.93,0.00016308,2]
[382644475,1756692642708,-480.0,0.00016308,2]
[382644477,1756692642718,-480.0,0.00016308,2]
[382644479,1756692642727,-509.26,0.00016308,2]
[382644481,1756692642737,-480.0,0.00016309,2]
[382644483,1756692642746,-781.43,0.00016309,2]
[382644485,1756692642756,-480.0,0.00016309,2]
[382644487,1756692642765,-480.0,0.00016309,2]
[382644489,1756692642775,-480.0,0.00016309,2]
[382644491,1756692642785,-480.0,0.00016309,2]
[382644493,1756692642794,-480.0,0.00016309,2]
[382644495,1756692642803,-480.0,0.00016309,2]
[382644497,1756692642812,-611.39036016,0.00016309,2]
[382644498,1756692642822,-480.0,0.00016309,2]
[382644500,1756692642831,-990.93,0.00016309,2]
[382644502,1756692642841,-480.0,0.00016309,2]
[382644506,1756692642850,-480.0,0.00016309,2]
[382644509,1756692642861,-480.0,0.00016309,2]
[382644511,1756692642870,-480.0,0.00016309,2]
[382644513,1756692642882,-745.29,0.00016309,2]
[382644515,1756692642896,-561.58,0.00016309,2]
[382644517,1756692642906,-480.0,0.00016309,2]
[382644519,1756692642916,-480.0,0.00016309,2]
[382644521,1756692642929,-480.0,0.00016309,2]
[382644523,1756692642939,-511.58,0.00016309,2]
[382644525,1756692642948,-1064.73,0.00016309,2]
[382644527,1756692642958,-610.31,0.00016309,2]
[382644529,1756692642969,-678.07,0.00016309,2]
[382644531,1756692642979,-480.0,0.00016309,2]
[382644532,1756692642988,-480.0,0.00016309,2]
[382644534,1756692642998,-480.0,0.00016309,2]
[382644536,1756692643008,-480.0,0.00016309,2]
[382644538,1756692643018,-480.0,0.00016309,2]
[382644540,1756692643027,-480.0,0.00016309,2]
[382644543,1756692643036,-325.97501638,0.00016309,2]
[382644546,1756692643046,-517.95,0.00016309,2]
[382644549,1756692643055,-693.23,0.00016309,2]
[382644551,1756692643064,-480.0,0.00016309,2]
[382644554,1756692643073,-480.0,0.00016309,2]
[382644556,1756692643082,-1012.73,0.00016309,2]
[382644558,1756692643092,-480.0,0.00016309,2]
[382644560,1756692643101,-480.0,0.00016309,2]
[382644562,1756692643111,-1047.43,0.00016309,2]
[382644564,1756692643120,-480.0,0.00016309,2]
[382644565,1756692643132,-480.0,0.00016309,2]
[382644566,1756692643141,-480.0,0.00016309,2]
[382644567,1756692643150,-480.0,0.00016309,2]
[382644568,1756692643158,-480.0,0.00016309,2]
[382644569,1756692643167,-849.1,0.00016309,2]
[382644570,1756692643176,-480.0,0.00016309,2]
[382644571,1756692643184,-767.51,0.00016309,2]
[382644572,1756692643193,-570.9,0.00016309,2]
[382644573,1756692643203,-1000.36,0.00016309,2]
[382644574,1756692643211,-1131.33,0.00016309,2]
[382644575,1756692643220,-672.3,0.00016309,2]
[382644576,1756692643229,-480.0,0.00016309,2]
[382644577,1756692643238,-480.0,0.00016309,2]
[382644578,1756692643247,-480.0,0.00016309,2]
[382644579,1756692643256,-480.0,0.00016309,2]
[382644580,1756692643265,-870.18,0.00016309,2]
[382644581,1756692643275,-480.0,0.00016309,2]
[382644582,1756692643284,-538.88,0.00016309,2]
[382644583,1756692643294,-506.62,0.00016309,2]
[382644584,1756692643303,-345.17565042,0.00016309,2]
[382644585,1756692643311,-716.35,0.00016309,2]
[382644586,1756692643320,-2299.19,0.00016309,2]
[382644587,1756692643331,-567.52,0.00016309,2]
[382644588,1756692643340,-480.0,0.00016309,2]
[382644589,1756692643349,-480.0,0.00016309,2]
[382644590,1756692643358,-591.02,0.00016309,2]
[382644591,1756692643366,-480.0,0.00016309,2]
[382644592,1756692643376,-739.88,0.00016309,2]
[382644593,1756692643387,-480.0,0.00016309,2]
[382644594,1756692643396,-2382.04,0.00016309,2]
[382644595,1756692643406,-480.0,0.00016309,2]
[382644597,1756692643417,-480.0,0.00016309,2]
[382644598,1756692643426,-716.57,0.00016309,2]
[382644600,1756692643435,-480.0,0.00016309,2]
[382644602,1756692643444,-1378.16,0.00016309,2]
[382644604,1756692643454,-794.42,0.00016309,2]
[382644606,1756692643463,-2025.92,0.00016309,2]
[382644608,1756692643473,-392.20297653,0.00016309,2]
[382644610,1756692643482,-480.0,0.00016309,2]
[382644612,1756692643492,-480.0,0.00016309,2]
[382644614,1756692643501,-480.0,0.00016309,2]
[382644616,1756692643511,-480.0,0.00016309,2]
[382644618,1756692643520,-480.0,0.00016309,2]
[382644620,1756692643530,-480.0,0.00016309,2]
[382644622,1756692643539,-480.0,0.00016309,2]
[382644624,1756692643549,-480.0,0.00016309,2]
[382644626,1756692643558,-480.0,0.00016309,2]
[382644628,1756692643567,-480.0,0.00016309,2]
[382644630,1756692643576,-482.08901058,0.00016309,2]
[382644632,1756692643586,-880.13,0.00016309,2]
[382644634,1756692643596,-480.0,0.00016309,2]
[382644636,1756692643605,-805.44,0.00016309,2]
[382644638,1756692643615,-528.9,0.00016309,2]
[382644640,1756692643625,-1031.03,0.00016309,2]
[382644642,1756692643637,-480.0,0.00016309,2]
[382644645,1756692643646,-480.0,0.00016309,2]
[382644648,1756692643656,-530.86,0.00016309,2]
[382644650,1756692643666,-480.0,0.00016309,2]
[382644652,1756692643675,-480.0,0.00016309,2]
[382644654,1756692643684,-509.55,0.00016309,2]
[382644656,1756692643694,-480.0,0.00016309,2]
[382644658,1756692643704,-480.0,0.00016309,2]
[382644660,1756692643713,-711.49,0.00016309,2]
[382644662,1756692643723,-364.04326404,0.00016309,2]
[382644664,1756692643732,-480.0,0.00016309,2]
[382644666,1756692643742,-480.0,0.00016309,2]
[382644668,1756692643751,-482.47917028,0.00016309,2]
[382644670,1756692643760,-480.0,0.00016309,2]
[382644672,1756692643769,-480.0,0.00016309,2]
[382644674,1756692643779,-480.0,0.00016309,2]
[382644676,1756692643788,-481.71160706,0.00016309,2]
[382644677,1756692643798,-480.0,0.00016309,2]
[382644679,1756692643807,-1005.3,0.00016309,2]
[382644681,1756692643817,-609.27,0.00016309,2]
[382644683,1756692643827,-480.0,0.00016309,2]
[382644685,1756692643837,-480.0,0.00016309,2]
[382644688,1756692643847,-615.16,0.00016309,2]
[382644690,1756692643857,-919.55,0.00016309,2]
[382644692,1756692643867,-1203.79,0.00016309,2]
[382644693,1756692643876,-552.38,0.0001631,2]
[382644695,1756692643887,-1211.96,0.0001631,2]
[382644697,1756692643896,-1477.91,0.0001631,2]
[382644699,1756692643906,-481.71634681,0.0001631,2]
[382644701,1756692643917,-480.0,0.0001631,2]
[382644703,1756692643934,-1853.34,0.0001631,2]
[382644705,1756692643944,-962.5,0.0001631,2]
[382644707,1756692643953,-618.13,0.0001631,2]
[382644709,1756692643964,-1180.26,0.0001631,2]
[382644711,1756692643973,-500.0,0.00016311,2]
[382644713,1756692643984,-480.0,0.00016311,2]
[382644715,1756692643993,-823.81,0.00016311,2]
[382644717,1756692644004,-505.55,0.00016311,2]
[382644719,1756692644013,-480.0,0.00016311,2]
[382644721,1756692644023,-804.41,0.00016311,2]
[382644723,1756692644032,-514.74,0.00016311,2]
[382644725,1756692644042,-480.0,0.00016311,2]
[382644727,1756692644051,-572.77,0.00016311,2]
[382644729,1756692644060,-480.0,0.00016311,2]
[382644731,1756692644070,-480.0,0.00016311,2]
[382644733,1756692644080,-480.0,0.00016311,2]
[382644735,1756692644090,-1066.83,0.00016311,2]
[382644737,1756692644100,-1056.87,0.00016311,2]
[382644739,1756692644110,-480.0,0.00016311,2]
[382644741,1756692644119,-480.0,0.00016311,2]
[382644743,1756692644129,-480.0,0.00016311,2]
[382644745,1756692644139,-480.0,0.00016311,2]
[382644747,1756692644148,-942.58,0.00016311,2]
[382644749,1756692644157,-1024.49,0.00016311,2]
[382644751,1756692644167,-480.0,0.00016311,2]
[382644753,1756692644178,-944.92,0.00016311,2]
[382644755,1756692644188,-480.0,0.00016311,2]
[382644757,1756692644198,-480.0,0.00016311,2]
[382644759,1756692644207,-491.06,0.00016311,2]
[382644761,1756692644217,-480.0,0.00016311,2]
[382644763,1756692644227,-501.2,0.00016311,2]
[382644765,1756692644237,-933.74,0.00016311,2]
[382644767,1756692644247,-945.42,0.00016311,2]
[382644769,1756692644256,-480.0,0.00016311,2]
[382644771,1756692644265,-979.9,0.00016311,2]
[382644773,1756692644274,-480.0,0.00016311,2]
[382644775,1756692644284,-480.0,0.00016311,2]
[382644777,1756692644296,-1150.39,0.00016311,2]
[382644779,1756692644305,-902.27,0.00016311,2]
[382644781,1756692644315,-804.22,0.00016311,2]
[382644783,1756692644324,-1212.68,0.00016311,2]
[382644785,1756692644334,-480.0,0.00016311,2]
[382644787,1756692644343,-480.0,0.00016311,2]
[382644789,1756692644353,-480.0,0.00016311,2]
[382644791,1756692644363,-1815.61,0.00016311,2]
[382644793,1756692644372,-1076.63,0.00016311,2]
[382644795,1756692644384,-612.97,0.00016311,2]
[382644797,1756692644394,-480.0,0.00016311,2]
[382644799,1756692644403,-1268.48,0.00016311,2]
[382644801,1756692644414,-690.34,0.00016311,2]
[382644803,1756692644423,-518.8,0.00016311,2]
[382644806,1756692644434,-480.0,0.00016311,2]
[382644807,1756692644444,-480.0,0.00016312,2]
[382644809,1756692644453,-679.89,0.00016312,2]
[382644811,1756692644462,-480.0,0.00016312,2]
[382644813,1756692644472,-480.0,0.00016312,2]
[382644815,1756692644483,-480.0,0.00016312,2]
[382644817,1756692644491,-480.0,0.00016312,2]
[382644819,1756692644502,-480.0,0.00016312,2]
[382644821,1756692644511,-558.98692058,0.00016312,2]
[382644823,1756692644519,-480.0,0.00016312,2]
[382644825,1756692644529,-480.0,0.00016312,2]
[382644827,1756692644538,-709.23,0.00016312,2]
[382644829,1756692644547,-735.72,0.00016312,2]
[382644831,1756692644556,-480.0,0.00016312,2]
[382644833,1756692644565,-482.23637897,0.00016312,2]
[382644835,1756692644574,-1016.26,0.00016312,2]
[382644837,1756692644584,-480.0,0.00016312,2]
[382644839,1756692644593,-480.0,0.00016312,2]
[382644841,1756692644603,-507.38,0.00016312,2]
[382644843,1756692644612,-480.0,0.00016312,2]
[382644845,1756692644621,-480.0,0.00016312,2]
[382644847,1756692644632,-480.0,0.00016312,2]
[382644849,1756692644642,-480.0,0.00016312,2]
[382644851,1756692644653,-205.36542853,0.00016312,2]
[382644853,1756692644663,-480.0,0.00016312,2]
[382644855,1756692644672,-480.0,0.00016312,2]
[382644857,1756692644682,-590.99159166,0.00016312,2]
[382644859,1756692644691,-1039.37,0.00016312,2]
[382644863,1756692644851,-480.0,0.00016312,2]
[382644864,1756692644884,-480.0,0.00016312,2]
[382644865,1756692644894,-984.8,0.00016312,2]
[382644866,1756692644904,-480.0,0.00016312,2]
[382644867,1756692644914,-480.0,0.00016312,2]
[382644868,1756692644927,-480.0,0.00016312,2]
[382644869,1756692644937,-642.31,0.00016312,2]
[382644870,1756692644947,-480.0,0.00016312,2]
[382644871,1756692644958,-506.01,0.00016312,2]
[382644872,1756692644968,-480.0,0.00016312,2]
[382644873,1756692644978,-512.92,0.00016312,2]
[382644874,1756692644987,-480.0,0.00016312,2]
[382644875,1756692644998,-606.66,0.00016312,2]
[382644876,1756692645008,-480.0,0.00016312,2]
[382644877,1756692645018,-480.0,0.00016312,2]
[382644878,1756692645027,-480.0,0.00016312,2]
[382644879,1756692645037,-480.0,0.00016312,2]
[382644880,1756692645046,-480.0,0.00016312,2]
[382644881,1756692645056,-480.0,0.00016312,2]
[382644882,1756692645065,-1049.89,0.00016312,2]
[382644883,1756692645076,-480.0,0.00016312,2]
[382644884,1756692645085,-480.0,0.00016312,2]
[382644885,1756692645095,-482.11932971,0.00016312,2]
[382644886,1756692645104,-411.95930605,0.00016312,2]
[382644887,1756692645114,-480.0,0.00016312,2]
[382644888,1756692645123,-480.0,0.00016312,2]
[382644889,1756692645134,-480.0,0.00016312,2]
[382644890,1756692645145,-480.0,0.00016312,2]
[382644891,1756692645154,-480.0,0.00016312,2]
[382644892,1756692645164,-480.0,0.00016312,2]
[382644893,1756692645174,-480.0,0.00016312,2]
[382644894,1756692645183,-480.0,0.00016312,2]
[382644895,1756692645193,-501.97,0.00016312,2]
[382644896,1756692645203,-982.0,0.00016312,2]
[382644897,1756692645212,-942.76,0.00016312,2]
[382644898,1756692645222,-480.0,0.00016312,2]
[382644899,1756692645231,-480.0,0.00016312,2]
[382644900,1756692645241,-1009.57,0.00016312,2]
[382644901,1756692645251,-480.0,0.00016312,2]
[382644902,1756692645261,-548.15,0.00016312,2]
[382644903,1756692645270,-480.0,0.00016312,2]
[382644904,1756692645280,-480.0,0.00016312,2]
[382644905,1756692645289,-480.0,0.00016312,2]
[382644906,1756692645298,-480.0,0.00016312,2]
[382644907,1756692645308,-480.0,0.00016312,2]
[382644908,1756692645317,-480.0,0.00016312,2]
[382644909,1756692645328,-480.0,0.00016312,2]
[382644910,1756692645340,-480.0,0.00016312,2]
[382644911,1756692645350,-480.0,0.00016312,2]
[382644912,1756692645359,-617.3,0.00016312,2]
[382644913,1756692645369,-541.4,0.00016312,2]
[382644914,1756692645380,-480.0,0.00016312,2]
[382644915,1756692645389,-480.0,0.00016312,2]
[382644916,1756692645399,-480.0,0.00016312,2]
[382644917,1756692645408,-480.0,0.00016312,2]
[382644918,1756692645417,-480.0,0.00016312,2]
[382644919,1756692645427,-480.0,0.00016312,2]
[382644920,1756692645437,-480.0,0.00016312,2]
[382644921,1756692645447,-480.0,0.00016312,2]
[382644922,1756692645456,-480.0,0.00016312,2]
[382644923,1756692645465,-480.0,0.00016312,2]
[382644924,1756692645475,-482.36166513,0.00016312,2]
[382644925,1756692645485,-480.0,0.00016312,2]
[382644926,1756692645495,-402.25864143,0.00016312,2]
[382644927,1756692645505,-480.0,0.00016312,2]
[382644928,1756692645514,-480.0,0.00016312,2]
[382644929,1756692645524,-480.0,0.00016312,2]
[382644930,1756692645533,-480.0,0.00016312,2]
[382644931,1756692645542,-543.51,0.00016312,2]
[382644932,1756692645551,-492.4909545,0.00016312,2]
[382644933,1756692645560,-480.0,0.00016312,2]
[382644934,1756692645570,-480.0,0.00016312,2]
[382644935,1756692645579,-480.0,0.00016312,2]
[382644936,1756692645589,-809.86,0.00016313,2]
[382644937,1756692645598,-480.0,0.00016313,2]
[382644938,1756692645607,-480.0,0.00016313,2]
[382644939,1756692645617,-480.0,0.00016313,2]
[382644940,1756692645626,-480.0,0.00016313,2]
[382644941,1756692645637,-3859.91,0.00016314,2]
[382644942,1756692645647,-657.21,0.00016314,2]
[382644943,1756692645657,-1450.19,0.00016314,2]
[382644944,1756692645667,-480.0,0.00016314,2]
[382644945,1756692645682,-821.61,0.00016314,2]
[382644946,1756692645692,-5365.63,0.00016314,2]
[382644947,1756692645701,-1282.19,0.00016314,2]
[382644948,1756692645711,-5001.93,0.00016314,2]
[382644949,1756692645721,-1135.74,0.00016314,2]
[382644950,1756692645730,-5378.7,0.00016314,2]
[382644951,1756692645740,-480.0,0.00016314,2]
[382644952,1756692645749,-3345.41,0.00016314,2]
[382644953,1756692645759,-972.38,0.00016315,2]
[382644954,1756692645769,-776.14,0.00016315,2]
[382644955,1756692645779,-583.77,0.00016315,2]
[382644956,1756692645789,-594.58323345,0.00016315,2]
[382644957,1756692645799,-480.0,0.00016315,2]
[382644958,1756692645809,-480.0,0.00016315,2]
[382644959,1756692645818,-999.25,0.00016315,2]
[382644960,1756692645828,-480.0,0.00016315,2]
[382644961,1756692645838,-482.32594445,0.00016315,2]
[382644962,1756692645847,-860.73,0.00016315,2]
[382644963,1756692645857,-480.0,0.00016315,2]
[382644964,1756692645866,-480.0,0.00016315,2]
[382644965,1756692645876,-622.46,0.00016315,2]
[382644966,1756692645887,-480.0,0.00016315,2]
[382644967,1756692645897,-480.0,0.00016315,2]
[382644968,1756692645906,-577.35,0.00016315,2]
[382644969,1756692645917,-480.0,0.00016315,2]
[382644971,1756692645930,-480.0,0.00016315,2]
[382644973,1756692645939,-480.0,0.00016315,2]
[382644974,1756692645948,-872.25,0.00016315,2]
[382644977,1756692645958,-480.0,0.00016315,2]
[382644979,1756692645968,-588.27,0.00016315,2]
[382644981,1756692645978,-480.0,0.00016315,2]
[382644982,1756692645987,-480.0,0.00016315,2]
[382644984,1756692645997,-544.28,0.00016315,2]
[382644985,1756692646007,-281.95276499,0.00016315,2]
[382644986,1756692646017,-480.0,0.00016315,2]
[382644988,1756692646027,-480.0,0.00016315,2]
[382644989,1756692646036,-881.3,0.00016315,2]
[382644990,1756692646046,-480.0,0.00016315,2]
[382644991,1756692646055,-1570.06,0.00016315,2]
[382644992,1756692646065,-480.0,0.00016315,2]
[382644993,1756692646075,-754.55,0.00016315,2]
[382644994,1756692646085,-792.77,0.00016315,2]
[382644995,1756692646095,-346.94896235,0.00016315,2]
[382644996,1756692646106,-480.0,0.00016315,2]
[382644997,1756692646115,-480.0,0.00016315,2]
[382644998,1756692646125,-199.38711018,0.00016315,2]
[382644999,1756692646136,-480.0,0.00016315,2]
[382645000,1756692646145,-1062.36,0.00016315,2]
[382645001,1756692646155,-480.0,0.00016318,2]
[382645002,1756692646166,-480.0,0.00016318,2]
[382645003,1756692646176,-480.0,0.00016318,2]
[382645004,1756692646186,-480.0,0.00016318,2]
[382645005,1756692646196,-480.0,0.00016318,2]
[382645007,1756692646206,-275.48352916,0.00016319,2]
[382645009,1756692646216,-480.0,0.00016319,2]
[382645010,1756692646226,-480.0,0.00016319,2]
[382645011,1756692646237,-801.43,0.00016319,2]
[382645013,1756692646248,-480.0,0.00016319,2]
[382645014,1756692646258,-480.0,0.00016319,2]
[382645016,1756692646268,-480.0,0.00016319,2]
[382645018,1756692646277,-495.14,0.00016319,2]
[382645020,1756692646287,-480.0,0.00016319,2]
[382645022,1756692646296,-480.0,0.00016319,2]
[382645023,1756692646306,-574.88,0.00016319,2]
[382645024,1756692646316,-480.0,0.00016319,2]
[382645025,1756692646325,-830.69,0.00016319,2]
[382645026,1756692646335,-480.0,0.00016319,2]
[382645027,1756692646344,-480.0,0.00016319,2]
[382645028,1756692646360,-871.21,0.00016319,2]
[382645029,1756692646370,-480.0,0.00016319,2]
[382645030,1756692646381,-480.0,0.00016319,2]
[382645031,1756692646391,-480.0,0.00016319,2]
[382645032,1756692646400,-555.15,0.00016319,2]
[382645033,1756692646410,-1140.65,0.00016319,2]
[382645034,1756692646420,-670.22,0.00016319,2]
[382645035,1756692646430,-160.63280761,0.00016319,2]
[382645036,1756692646440,-480.0,0.00016319,2]
[382645037,1756692646450,-480.0,0.00016319,2]
[382645038,1756692646459,-480.0,0.00016319,2]
[382645039,1756692646469,-480.0,0.00016319,2]
[382645040,1756692646478,-480.0,0.00016319,2]
[382645041,1756692646488,-493.34,0.00016319,2]
[382645042,1756692646497,-480.0,0.00016319,2]
[382645043,1756692646507,-480.0,0.00016319,2]
[382645044,1756692646518,-480.0,0.00016319,2]
[382645045,1756692646528,-657.94,0.00016319,2]
[382645047,1756692646537,-495.51,0.00016323,2]
[382645049,1756692646548,-480.0,0.00016323,2]
[382645050,1756692646557,-486.89,0.00016323,2]
[382645051,1756692646567,-6773.08754039,0.00016331,2]
[382645052,1756692646576,-402.83718299,0.00016349,2]
[382645053,1756692646587,-704.0,0.00016356,2]
[382645054,1756692646596,-300.0,0.00016359,2]
[382645055,1756692646606,-300.0,0.00016359,2]
[382645056,1756692646615,-300.0,0.00016359,2]
[382645057,1756692646625,-300.0,0.00016359,2]
[382645058,1756692646636,-300.0,0.00016359,2]
[382645059,1756692646645,-300.0,0.00016359,2]
[382645060,1756692646655,-300.0,0.00016359,2]
[382645061,1756692646664,-300.0,0.00016359,2]
[382645062,1756692646674,-300.0,0.00016359,2]
[382645063,1756692646684,-300.0,0.00016359,2]
[382645064,1756692646693,-300.0,0.00016359,2]
[382645065,1756692646703,-300.0,0.00016359,2]
[382645066,1756692646712,-300.0,0.00016359,2]
[382645067,1756692646722,-300.0,0.00016359,2]
[382645068,1756692646732,-300.0,0.00016359,2]
[382645069,1756692646742,-151.0,0.000164,2]
[382645070,1756692646751,-151.0,0.000164,2]
[382645072,1756692646760,-211.703,0.00016411,2]
[382645073,1756692646770,-160.0,0.00016422,2]
[382645074,1756692646780,-160.0,0.00016422,2]
[382645075,1756692646790,-160.0,0.00016422,2]
[382645076,1756692646799,-500.0,0.00016438,2]
[382645077,1756692646808,-500.0,0.00016438,2]
[382645078,1756692646819,-501.53371734,0.00016438,2]
[382645079,1756692646829,-2110.57,0.00016438,2]
[382645080,1756692646838,-2110.57,0.00016438,2]
[382645081,1756692646848,-2110.57,0.00016438,2]
[382645082,1756692646858,-2110.57,0.00016438,2]
[382645083,1756692646867,-2110.57,0.00016438,2]
[382645084,1756692646877,-2110.57,0.00016438,2]
[382645085,1756692646888,-2110.57,0.00016438,2]
[382645086,1756692646898,-2110.57,0.00016438,2]
[382645087,1756692646908,-2110.57,0.00016438,2]
[382645088,1756692646920,-2110.57,0.00016438,2]
[382645089,1756692646930,-2110.57,0.00016438,2]
[382645090,1756692646940,-2110.57,0.00016438,2]
[382645091,1756692646950,-2110.57,0.00016438,2]
[382645092,1756692646961,-2110.57,0.00016438,2]